bitfinex/quotes_ETHUSD_20251006
["timestamp","ask_amount","ask_price","bid_price","bid_amount"]
[1759753594657,2.63584262,4591.7,4591.6,0.001]
[1759753597167,2.63504262,4591.7,4591.6,0.001]
[1759753609331,0.5688,4592.1,4591.6,0.001]
[1759753609485,2.17782803,4591.8,4591.6,0.001]
[1759753609911,3.0348,4592.1,4591.6,0.001]
[1759753610113,2.17984262,4591.7,4591.6,0.001]
[1759753611500,2.63784262,4591.7,4591.6,0.001]
[1759753611914,2.17984262,4591.7,4591.6,0.001]
[1759753613219,2.63784262,4591.7,4591.6,0.001]
[1759753613421,2.17984262,4591.7,4591.6,0.001]
[1759753615336,2.63784262,4591.7,4591.6,0.001]
[1759753615501,0.002,4591.7,4591.6,0.001]
[1759753616108,2.17984262,4591.7,4591.6,0.001]
[1759753618335,2.63784262,4591.7,4591.6,0.001]
[1759753621630,2.63704262,4591.7,4591.6,0.001]
[1759753621832,0.0012,4591.7,4591.6,0.001]
[1759753622144,0.0012,4591.7,4591.6,0.4461]
[1759753622545,2.17904262,4591.7,4591.6,0.4461]
[1759753622737,2.17904262,4591.7,4591.6,0.001]
[1759753622927,2.62154262,4591.7,4591.6,0.001]
[1759753623126,2.82548888,4591.7,4591.6,0.001]
[1759753625473,0.20514626,4591.7,4591.6,0.001]
[1759753625640,2.38298888,4591.7,4591.6,0.001]
[1759753625842,2.17904262,4591.7,4591.6,0.001]
[1759753626854,2.17904262,4591.7,4591.6,0.77861276]
[1759753627181,2.17904262,4591.7,4591.6,2.61859006]
[1759753627182,0.0012,4591.7,4591.6,2.61859006]
[1759753627410,0.0012,4591.7,4591.6,3.2568263]
[1759753627687,0.0012,4591.7,4591.6,3.2786052]
[1759753628886,0.0012,4591.7,4591.6,3.2568263]
[1759753629563,0.0012,4591.7,4591.6,1.80560424]
[1759753629768,2.17904262,4591.7,4591.6,0.001]
[1759753630888,2.62154262,4591.7,4591.6,0.001]
[1759753632497,0.4437,4591.7,4591.6,0.001]
[1759753632682,0.0012,4591.7,4591.6,0.001]
[1759753633092,0.0012,4591.7,4591.6,0.77871132]
[1759753633603,0.0012,4591.7,4591.6,3.79321132]
[1759753633800,0.0012,4591.7,4591.6,4.29144719]
[1759753634674,0.0012,4591.7,4591.6,3.51373587]
[1759753635806,0.0012,4591.7,4591.6,3.53551477]
[1759753636890,0.0012,4591.7,4591.6,4.70188277]
[1759753637088,0.0012,4591.7,4591.6,4.68010387]
[1759753640689,0.0012,4591.7,4591.6,4.24040387]
[1759753641519,0.0012,4591.7,4591.6,3.07403587]
[1759753641812,0.0012,4591.7,4591.6,4.24040387]
[1759753643417,0.0012,4591.7,4591.6,4.26218277]
[1759753643583,0.0012,4591.7,4591.6,6.44007283]
[1759753643784,0.0012,4591.7,4591.6,5.69162593]
[1759753644120,0.0012,4591.7,4591.6,3.51373587]
[1759753644292,0.0012,4591.7,4591.6,3.53551477]
[1759753644908,0.0012,4591.7,4591.6,4.70252463]
[1759753645117,0.0012,4591.7,4591.6,4.24104573]
[1759753645933,0.0012,4591.7,4591.6,5.69162593]
[1759753646095,0.0004,4591.7,4591.6,5.69162593]
[1759753646818,0.0004,4591.7,4591.6,3.51373587]
[1759753647021,0.0004,4591.7,4591.6,3.07403587]
[1759753647905,0.0004,4591.7,4591.6,0.60803587]
[1759753648112,0.0004,4591.7,4591.6,3.07303587]
[1759753648833,0.4429,4591.7,4591.6,3.07303587]
[1759753649038,0.4429,4591.7,4591.6,2.5748]
[1759753649940,0.0004,4591.7,4591.6,2.5748]
[1759753651812,0.0004,4591.7,4591.6,3.74185422]
[1759753652712,0.0004,4591.7,4591.6,5.91974428]
[1759753652913,0.0004,4591.7,4591.6,3.74185422]
[1759753654425,0.0004,4591.7,4591.6,2.5748]
[1759753655330,0.0004,4591.7,4591.6,2.5965789]
[1759753656204,0.0004,4591.7,4591.6,2.5748]
[1759753658929,0.0004,4591.7,4591.6,3.74250769]
[1759753662519,0.0004,4591.7,4591.6,5.92039775]
[1759753662718,0.0004,4591.7,4591.6,2.5748]
[1759753663440,0.0004,4591.7,4591.6,5.23306896]
[1759753663619,0.0004,4591.7,4591.6,5.95249257]
[1759753665110,0.0004,4591.7,4591.6,3.77460251]
[1759753665333,0.0004,4591.7,4591.6,3.31600251]
[1759753665938,0.0004,4591.7,4591.6,3.0334]
[1759753666138,2.17824262,4591.7,4591.6,0.1098]
[1759753666339,2.17789006,4591.6,4591.5,0.001]
[1759753666539,6.6035273,4591.7,4591.6,23.0015719]
[1759753666843,2.82536628,4591.7,4591.6,23.0015719]
[1759753670633,2.82536628,4591.7,4591.1,0.001]
[1759753670634,2.1780798,4591.2,4591.1,0.001]
[1759753671138,6.80698593,4591.2,4591.1,0.001]
[1759753671340,9.27198593,4591.2,4591.1,0.001]
[1759753671838,11.67198593,4591.2,4591.1,0.001]
[1759753672741,11.67177583,4591.2,4591.1,0.001]
[1759753676349,11.78057583,4591.2,4591.1,0.001]
[1759753676647,11.86777869,4591.2,4591.1,0.001]
[1759753678650,12.50137869,4591.2,4591.1,0.001]
[1759753678858,12.50137869,4591.2,4590.0,0.001]
[1759753678859,6.16054916,4590.6,4590.0,0.001]
[1759753679062,8.82896051,4590.6,4590.0,0.001]
[1759753679356,9.27206051,4590.6,4590.0,0.001]
[1759753680639,9.27206051,4590.6,4590.1,0.001]
[1759753683050,2.17860177,4590.1,4590.0,1e-08]
[1759753683265,8.56078645,4590.1,4590.0,1e-08]
[1759753683431,11.02578645,4590.1,4590.0,1e-08]
[1759753683843,11.46008645,4590.1,4590.0,1e-08]
[1759753685268,11.66271798,4590.1,4590.0,1e-08]
[1759753685477,11.74993986,4590.1,4590.0,1e-08]
[1759753688769,11.85873986,4590.1,4590.0,1e-08]
[1759753688972,4.97725518,4590.1,4590.0,1e-08]
[1759753689143,2.17860177,4590.1,4590.0,0.46940001]
[1759753689340,4.64360177,4590.1,4590.0,0.46940001]
[1759753689649,7.04360177,4590.1,4590.0,1e-08]
[1759753691281,7.24621591,4590.1,4590.0,1e-08]
[1759753692081,11.66270059,4590.1,4590.0,1e-08]
[1759753693177,12.29595718,4590.1,4590.0,1e-08]
[1759753695085,12.29515718,4590.1,4590.0,1e-08]
[1759753697787,12.29715718,4590.1,4590.0,1e-08]
[1759753699165,12.40595718,4590.1,4590.0,1e-08]
[1759753702471,13.03955718,4590.1,4590.0,1e-08]
[1759753703000,13.12678324,4590.1,4590.0,1e-08]
[1759753703159,13.59583483,4590.1,4590.0,1e-08]
[1759753703864,13.59583483,4590.1,4589.5,0.001]
[1759753703865,2.17883911,4589.6,4589.5,0.001]
[1759753704059,11.97172023,4589.6,4589.5,0.001]
[1759753704757,12.40602023,4589.6,4589.5,0.001]
[1759753704956,11.97172023,4589.6,4589.5,0.001]
[1759753705263,4.78247896,4589.6,4589.5,0.4704]
[1759753705470,0.20363985,4589.6,4589.5,0.001]
[1759753705771,11.86292023,4589.6,4589.5,0.4704]
[1759753706179,4.78247896,4589.6,4589.5,0.4704]
[1759753706381,7.24747896,4589.6,4589.5,0.4704]
[1759753707308,2.1790765,4589.1,4589.0,0.001]
[1759753707507,4.84771635,4589.1,4589.0,0.001]
[1759753709304,4.84771635,4589.1,4589.0,0.3138]
[1759753710999,2.38271635,4589.1,4589.0,0.3138]
[1759753711202,4.84771635,4589.1,4589.0,0.3138]
[1759753711505,4.84799641,4589.1,4589.0,0.3138]
[1759753712401,2.38299641,4589.1,4589.0,0.3138]
[1759753712604,4.84799641,4589.1,4589.0,0.3138]
[1759753712801,2.38299641,4589.1,4589.0,0.3138]
[1759753712971,4.61744127,4590.1,4589.0,0.3138]
[1759753712972,2.17906329,4589.2,4589.0,0.3138]
[1759753713172,2.465,4589.1,4589.0,0.3138]
[1759753713703,4.6440765,4589.1,4589.0,0.3138]
[1759753714782,4.6440765,4589.1,4589.0,0.001]
[1759753715989,4.6440765,4589.1,4589.0,0.3138]
[1759753716191,2.465,4589.1,4589.0,0.3138]
[1759753716695,4.6440765,4589.1,4589.0,0.3138]
[1759753717005,2.465,4589.1,4589.0,0.3138]
[1759753717807,0.1088,4589.3,4589.0,0.3138]
[1759753717996,2.465,4589.2,4589.0,0.3138]
[1759753718197,4.64403824,4589.2,4589.0,0.3138]
[1759753718382,4.64403824,4589.2,4589.1,0.3128]
[1759753718908,2.17894923,4589.4,4589.1,0.3128]
[1759753719087,0.1088,4589.7,4589.1,0.1088]
[1759753719288,2.66893746,4589.6,4589.2,0.3128]
[1759753719493,2.66893746,4589.6,4589.1,0.1088]
[1759753719494,2.17813463,4589.4,4589.3,0.3128]
[1759753719886,4.64313463,4589.4,4589.3,0.3128]
[1759753721009,2.17813463,4589.4,4589.3,0.3128]
[1759753721230,4.64313463,4589.4,4589.3,0.3128]
[1759753721513,4.64393406,4589.4,4589.3,0.3128]
[1759753722423,2.17902902,4589.2,4589.1,0.1088]
[1759753722991,2.17902902,4589.2,4589.1,0.4216]
[1759753722992,4.64402902,4589.2,4589.1,0.4216]
[1759753723823,2.17902902,4589.2,4589.1,0.1088]
[1759753724000,4.64402902,4589.2,4589.1,0.1088]
[1759753724192,2.17902902,4589.2,4589.1,0.1088]
[1759753724392,4.64402902,4589.2,4589.1,0.1088]
[1759753724823,2.17902902,4589.2,4589.1,0.1088]
[1759753725024,4.64402902,4589.2,4589.1,0.1088]
[1759753725396,2.1789524,4589.4,4589.1,0.1088]
[1759753725602,2.1789524,4589.4,4589.1,0.4216]
[1759753725803,2.17898452,4589.3,4589.2,0.3128]
[1759753726115,2.465,4589.3,4589.2,0.3128]
[1759753726323,2.17897816,4589.4,4589.2,0.3128]
[1759753726622,4.64398154,4589.3,4589.2,0.3128]
[1759753726820,2.17894298,4589.4,4589.2,0.3128]
[1759753727021,4.64398492,4589.3,4589.2,0.3128]
[1759753727213,2.17898492,4589.3,4589.2,0.3128]
[1759753727530,2.17898492,4589.3,4589.1,0.1088]
[1759753727827,2.1789472,4589.4,4589.2,0.3128]
[1759753728203,2.17898154,4589.3,4589.1,0.1088]
[1759753729242,2.465,4589.5,4589.1,0.1088]
[1759753729449,2.17902902,4589.2,4589.1,0.1088]
[1759753731335,2.465,4589.3,4589.1,0.1088]
[1759753731527,4.64401768,4589.3,4589.1,0.1088]
[1759753731742,2.465,4589.3,4589.1,0.1088]
[1759753732638,0.002,4589.5,4589.1,0.65059692]
[1759753732801,0.002,4589.5,4589.2,0.33459029]
[1759753733133,0.002,4589.5,4589.4,0.1088]
[1759753733539,0.002,4589.5,4589.4,0.13058934]
[1759753733947,0.002,4589.5,4589.4,0.44338934]
[1759753734355,0.002,4589.5,4589.4,0.13058934]
[1759753734535,0.002,4589.5,4589.4,0.1088]
[1759753736231,2.17906394,4589.2,4589.0,0.001]
[1759753737039,2.1790765,4589.1,4589.0,0.001]
[1759753737967,2.17903302,4589.2,4589.0,0.001]
[1759753738330,2.464,4589.3,4589.0,0.001]
[1759753738532,2.1789444,4589.4,4589.0,0.001]
[1759753738841,2.17894127,4589.4,4589.0,0.001]
[1759753739234,2.464,4589.3,4589.0,0.001]
[1759753739436,2.17907057,4589.2,4589.0,0.001]
[1759753739758,2.1790765,4589.1,4589.0,0.001]
[1759753740646,2.17903352,4589.2,4589.0,0.001]
[1759753741639,4.64299049,4589.3,4589.0,0.001]
[1759753741844,2.17903358,4589.2,4589.0,0.001]
[1759753742143,4.64298261,4589.3,4589.0,0.001]
[1759753742537,2.464,4589.3,4589.0,0.001]
[1759753742962,0.442,4589.2,4589.0,0.001]
[1759753743173,9.25851777,4589.1,4589.0,0.001]
[1759753743331,9.462473,4589.1,4589.0,0.001]
[1759753743531,12.304473,4589.1,4589.0,0.001]
[1759753743945,12.303673,4589.1,4589.0,0.001]
[1759753745042,7.68823173,4589.1,4589.0,0.001]
[1759753745969,5.22423173,4589.1,4589.0,0.001]
[1759753746152,7.68823173,4589.1,4589.0,0.001]
[1759753746357,7.79703173,4589.1,4589.0,0.001]
[1759753747167,5.33303173,4589.1,4589.0,0.001]
[1759753747686,7.79703173,4589.1,4589.0,0.001]
[1759753748089,5.33303173,4589.1,4589.0,0.001]
[1759753748292,7.79703173,4589.1,4589.0,0.001]
[1759753748994,5.33303173,4589.1,4589.0,0.001]
[1759753749180,7.79703173,4589.1,4589.0,0.001]
[1759753749500,7.24703173,4589.1,4589.0,0.001]
[1759753749800,4.84703173,4589.1,4589.0,0.001]
[1759753750292,5.28903173,4589.1,4589.0,0.001]
[1759753751467,2.82503173,4589.1,4589.0,0.001]
[1759753751883,5.28903173,4589.1,4589.0,0.001]
[1759753752206,5.28860552,4589.1,4589.0,0.001]
[1759753752371,2.82460552,4589.1,4589.0,0.001]
[1759753752592,7.68860552,4589.1,4589.0,0.001]
[1759753754431,7.77583862,4589.1,4589.0,0.001]
[1759753755226,11.76603931,4589.1,4589.0,0.001]
[1759753757630,2.17921896,4588.8,4588.3,0.001]
[1759753757829,6.16960963,4588.4,4588.3,0.001]
[1759753758033,8.83813865,4588.4,4588.3,0.001]
[1759753758355,9.28013865,4588.4,4588.3,0.001]
[1759753759437,9.38893865,4588.4,4588.3,0.001]
[1759753760728,11.78893865,4588.4,4588.3,0.001]
[1759753763034,11.87618812,4588.4,4588.3,0.001]
[1759753765620,11.87618812,4588.4,4586.1,0.3128]
[1759753765621,2.17957917,4588.1,4586.1,0.3128]
[1759753765817,2.17957917,4588.1,4586.1,0.4216]
[1759753765818,6.27888472,4587.4,4586.1,0.4216]
[1759753766129,8.94741374,4587.4,4586.1,0.4216]
[1759753766337,9.6019104,4587.4,4586.3,0.3128]
[1759753766647,10.0439104,4587.4,4586.1,0.1088]
[1759753767144,10.0439104,4587.4,4586.2,0.3128]
[1759753767517,12.4439104,4587.4,4586.2,0.3128]
[1759753767717,12.4439104,4587.4,4586.1,0.1088]
[1759753768339,12.0019104,4587.4,4586.8,0.001]
[1759753768543,12.0011104,4587.4,4586.8,0.001]
[1759753768741,12.4431104,4587.4,4586.8,0.001]
[1759753770443,9.5361104,4587.4,4586.8,0.001]
[1759753770622,12.0011104,4587.4,4586.8,0.001]
[1759753771320,12.4431104,4587.4,4586.8,0.001]
[1759753771617,12.0011104,4587.4,4586.8,0.001]
[1759753771971,5.54566493,4587.4,4587.0,0.3128]
[1759753772255,7.35616827,4587.4,4587.0,0.3128]
[1759753772452,7.66896827,4587.4,4587.0,0.3128]
[1759753772652,5.20396827,4587.4,4587.0,0.3128]
[1759753772856,5.20396827,4587.4,4586.8,0.3138]
[1759753773026,7.66896827,4587.4,4586.8,0.3138]
[1759753773227,5.20396827,4587.4,4586.8,0.3138]
[1759753773453,7.66896827,4587.4,4586.8,0.3138]
[1759753773650,5.20396827,4587.4,4586.8,0.001]
[1759753773869,7.35616827,4587.4,4587.0,0.3128]
[1759753774563,4.89116827,4587.4,4586.8,0.001]
[1759753774723,7.35616827,4587.4,4586.8,0.001]
[1759753775632,11.34636896,4587.4,4586.8,0.001]
[1759753775848,11.78656896,4587.4,4586.8,0.001]
[1759753776248,12.20816896,4587.4,4586.8,0.001]
[1759753777981,12.84176896,4587.4,4586.8,0.001]
[1759753778353,12.84176896,4587.4,4586.3,1e-08]
[1759753778354,2.18035932,4586.4,4586.3,1e-08]
[1759753778589,8.83884425,4586.4,4586.3,1e-08]
[1759753778784,9.27904425,4586.4,4586.3,1e-08]
[1759753779485,9.27902921,4586.4,4586.3,1e-08]
[1759753780671,8.83882921,4586.4,4586.3,1e-08]
[1759753780856,2.38362852,4586.4,4586.3,1e-08]
[1759753781058,2.17988801,4587.4,4586.3,0.31280001]
[1759753781246,2.18027371,4586.6,4586.3,0.31280001]
[1759753781452,4.6453325,4586.5,4586.3,1e-08]
[1759753781784,2.1803325,4586.5,4586.4,0.3128]
[1759753781950,2.18035932,4586.4,4586.3,1e-08]
[1759753782150,2.18035932,4586.4,4586.3,0.31280001]
[1759753782373,4.64535932,4586.4,4586.3,0.31280001]
[1759753782577,2.465,4586.4,4586.3,0.31280001]
[1759753782776,4.64535932,4586.4,4586.3,0.31280001]
[1759753782950,2.18035932,4586.4,4586.3,1e-08]
[1759753783155,4.64535932,4586.4,4586.3,0.31280001]
[1759753783877,4.64535932,4586.4,4586.3,1e-08]
[1759753784275,4.84876737,4586.4,4586.3,1e-08]
[1759753788397,4.95756737,4586.4,4586.3,1e-08]
[1759753789795,4.95856737,4586.4,4586.3,1e-08]
[1759753790904,2.66940805,4586.4,4586.3,0.31280001]
[1759753791270,0.20340805,4586.4,4586.3,0.31280001]
[1759753791474,2.466,4586.4,4586.3,0.31280001]
[1759753791678,2.66940805,4586.4,4586.3,0.31280001]
[1759753791901,0.20340805,4586.4,4586.3,0.31280001]
[1759753792206,2.66979333,4586.4,4586.3,0.31280001]
[1759753792376,4.85015265,4586.4,4586.3,1e-08]
[1759753792714,2.66979333,4586.4,4586.3,1e-08]
[1759753793216,2.466,4586.4,4586.3,1e-08]
[1759753793600,3.99020069,4587.3,4586.3,1e-08]
[1759753793601,0.002,4587.4,4586.3,0.31280001]
[1759753793933,0.002,4587.4,4586.4,0.1088]
[1759753793934,2.28889,4587.0,4586.4,0.1088]
[1759753794098,2.466,4586.9,4586.5,0.26020153]
[1759753794295,2.466,4586.9,4586.5,0.3128]
[1759753794812,4.64612175,4586.9,4586.5,0.3128]
[1759753795121,2.18035932,4586.4,4586.3,1e-08]
[1759753795298,4.64635932,4586.4,4586.3,1e-08]
[1759753795501,5.08655932,4586.4,4586.3,1e-08]
[1759753798395,5.39935932,4586.4,4586.3,1e-08]
[1759753799210,4.64635932,4586.4,4586.3,1e-08]
[1759753800261,0.3128,4586.6,4586.3,1e-08]
[1759753800547,2.466,4586.5,4586.3,1e-08]
[1759753800715,2.466,4586.4,4586.3,1e-08]
[1759753800919,4.64635932,4586.4,4586.3,1e-08]
[1759753801221,2.466,4586.4,4586.3,1e-08]
[1759753801422,4.64635932,4586.4,4586.3,1e-08]
[1759753801928,2.466,4586.4,4586.3,1e-08]
[1759753802246,2.18027636,4586.6,4586.3,1e-08]
[1759753802433,2.18035932,4586.4,4586.3,1e-08]
[1759753802632,4.64635932,4586.4,4586.3,1e-08]
[1759753803822,5.10465932,4586.4,4586.3,1e-08]
[1759753804747,4.64635932,4586.4,4586.3,1e-08]
[1759753805124,4.85039433,4586.4,4586.3,1e-08]
[1759753807143,2.18054949,4586.0,4585.9,0.08880001]
[1759753807349,4.64654949,4586.0,4585.9,0.08880001]
[1759753807524,2.466,4586.0,4585.9,0.08880001]
[1759753808248,4.64654949,4586.0,4585.9,0.08880001]
[1759753808453,2.18054949,4586.0,4585.9,0.08880001]
[1759753808655,0.1088,4586.5,4585.9,0.3128]
[1759753808825,0.1088,4587.2,4585.9,0.4216]
[1759753809027,0.89305475,4587.1,4586.5,0.1088]
[1759753809361,0.20405475,4587.0,4586.5,0.1088]
[1759753809727,2.18013501,4586.9,4586.5,0.1088]
[1759753809929,2.466,4586.8,4586.5,0.1088]
[1759753810731,0.1088,4587.2,4586.6,2.49306017]
[1759753810938,2.67000593,4587.1,4586.6,0.3128]
[1759753811139,0.002,4587.4,4586.6,0.3128]
[1759753811140,0.002,4587.4,4586.7,0.3128]
[1759753811340,0.002,4587.4,4587.0,0.1088]
[1759753811527,0.002,4587.4,4587.3,0.1088]
[1759753811749,2.18188403,4587.4,4587.3,0.1088]
[1759753812062,2.18188403,4587.4,4585.6,1.93691542]
[1759753812063,2.17993155,4587.3,4586.3,0.3128]
[1759753812271,2.18007412,4587.0,4586.5,0.1088]
[1759753812568,2.66995352,4587.2,4586.5,0.1088]
[1759753812569,2.18026424,4586.6,4586.5,0.1088]
[1759753812767,4.64626424,4586.6,4586.5,0.1088]
[1759753813131,2.18059704,4585.9,4585.8,0.001]
[1759753813355,2.18059704,4585.9,4585.8,0.1098]
[1759753813532,2.18059704,4585.9,4585.8,0.001]
[1759753813740,2.28915618,4586.5,4585.8,0.001]
[1759753813741,2.466,4586.2,4585.8,0.001]
[1759753813937,2.18059704,4585.9,4585.8,0.001]
[1759753814453,5.10489704,4585.9,4585.8,0.001]
[1759753816070,5.3088559,4585.9,4585.8,0.001]
[1759753816273,9.29905659,4585.9,4585.8,0.001]
[1759753816758,5.3088559,4585.9,4585.8,0.001]
[1759753817545,5.3080559,4585.9,4585.8,0.001]
[1759753819157,5.3080559,4585.9,4585.8,5.3172438]
[1759753821369,5.30787182,4585.9,4585.8,5.3172438]
[1759753824374,5.30783166,4585.9,4585.8,5.3172438]
[1759753826878,5.10409704,4585.9,4585.8,5.3172438]
[1759753827176,5.3078063,4585.9,4585.8,5.3172438]
[1759753827380,2.8418063,4585.9,4585.8,5.3172438]
[1759753827553,5.3078063,4585.9,4585.8,5.3172438]
[1759753829151,2.3835063,4585.9,4585.8,5.3172438]
[1759753829358,4.8495063,4585.9,4585.8,5.3172438]
[1759753829679,5.3078063,4585.9,4585.8,5.3172438]
[1759753833870,2.8418063,4585.9,4585.8,5.3172438]
[1759753834295,5.3078063,4585.9,4585.8,5.3172438]
[1759753835086,2.8418063,4585.9,4585.8,5.3172438]
[1759753835268,5.30770082,4585.9,4585.8,5.3172438]
[1759753837190,5.30770082,4585.9,4585.3,0.001]
[1759753837191,2.18083482,4585.4,4585.3,0.001]
[1759753837388,11.87248168,4585.4,4585.3,0.001]
[1759753837584,12.30418168,4585.4,4585.3,0.001]
[1759753837798,7.2504386,4585.4,4585.3,0.001]
[1759753838121,4.7844386,4585.4,4585.3,0.001]
[1759753838486,7.2504386,4585.4,4585.3,0.001]
[1759753838886,4.7844386,4585.4,4585.3,0.001]
[1759753839191,4.8504386,4585.4,4585.3,0.001]
[1759753840222,2.3844386,4585.4,4585.3,0.001]
[1759753840584,4.8504386,4585.4,4585.3,0.001]
[1759753841011,2.3844386,4585.4,4585.3,0.001]
[1759753841226,4.8504386,4585.4,4585.3,0.001]
[1759753841884,4.8496386,4585.4,4585.3,0.001]
[1759753842299,0.20360378,4585.4,4585.3,0.001]
[1759753842498,2.466,4585.4,4585.3,0.3138]
[1759753842923,4.64683482,4585.4,4585.3,0.3138]
[1759753843124,2.466,4585.4,4585.3,0.3138]
[1759753843727,4.64683482,4585.4,4585.3,0.3138]
[1759753843926,2.1826282,4585.9,4585.3,0.3138]
[1759753844124,2.18069215,4585.7,4585.3,0.3138]
[1759753844537,2.466,4585.6,4585.3,0.001]
[1759753844686,4.64676026,4585.6,4585.4,0.3128]
[1759753845026,0.002,4585.9,4585.5,0.3128]
[1759753845192,2.466,4585.8,4585.5,0.3128]
[1759753845685,2.466,4585.7,4585.3,0.001]
[1759753845886,2.18082785,4585.5,4585.4,0.3128]
[1759753846087,4.64677013,4585.6,4585.4,0.3128]
[1759753846515,2.466,4585.5,4585.4,0.3128]
[1759753846684,2.18068398,4585.8,4585.4,0.3128]
[1759753846889,2.18072951,4585.7,4585.3,0.001]
[1759753847086,4.64674921,4585.6,4585.3,0.001]
[1759753847300,4.64674921,4585.6,4585.3,0.3138]
[1759753848698,2.466,4585.6,4585.3,0.3138]
[1759753848907,2.466,4585.6,4585.3,0.001]
[1759753849317,4.6467518,4585.6,4585.3,0.001]
[1759753849900,2.18078881,4585.5,4585.3,0.001]
[1759753850108,2.466,4585.4,4585.3,0.3138]
[1759753850303,2.466,4585.4,4585.3,0.001]
[1759753852803,2.466,4585.4,4585.3,0.3138]
[1759753852999,0.1088,4585.8,4585.3,0.26135897]
[1759753853229,0.002,4585.9,4585.3,0.001]
[1759753853230,4.64671487,4585.7,4585.3,0.001]
[1759753853408,2.18077282,4585.6,4585.4,0.1088]
[1759753853729,2.466,4585.5,4585.4,0.1088]
[1759753854701,2.466,4585.5,4585.4,0.4216]
[1759753855105,2.466,4585.5,4585.4,0.1088]
[1759753856430,2.1806464,4585.8,4585.4,0.1088]
[1759753856732,4.64670124,4585.7,4585.4,0.1088]
[1759753856933,2.18074593,4585.6,4585.4,0.1088]
[1759753857234,2.466,4585.5,4585.4,0.1088]
[1759753857408,4.64678726,4585.5,4585.4,0.1088]
[1759753857935,2.466,4585.5,4585.4,0.1088]
[1759753860239,2.466,4585.5,4585.3,0.001]
[1759753860240,2.18083482,4585.4,4585.3,0.001]
[1759753860437,5.07853482,4585.4,4585.3,0.001]
[1759753861139,2.61253482,4585.4,4585.3,0.001]
[1759753861333,5.07853482,4585.4,4585.3,0.001]
[1759753862939,0.002,4585.7,4585.3,0.001]
[1759753863318,0.002,4585.7,4585.4,0.3128]
[1759753863319,2.224,4585.6,4585.4,0.3128]
[1759753863523,2.224,4585.6,4585.5,0.24946663]
[1759753863839,0.002,4585.7,4585.5,0.24946663]
[1759753864035,2.468,4585.7,4585.5,0.24946663]
[1759753864342,2.468,4585.7,4585.5,0.3128]
[1759753865050,2.468,4585.7,4585.3,0.001]
[1759753865223,2.468,4585.7,4585.3,0.3138]
[1759753865823,0.002,4585.7,4585.3,0.3138]
[1759753866029,2.468,4585.7,4585.4,0.3128]
[1759753866329,2.4672,4585.7,4585.4,0.56226596]
[1759753866712,0.0012,4585.7,4585.4,0.3128]
[1759753866933,2.4672,4585.7,4585.5,0.3128]
[1759753867345,2.4672,4585.7,4585.3,0.001]
[1759753867542,2.4672,4585.7,4585.3,0.02280882]
[1759753867868,2.4672,4585.7,4585.3,0.78355378]
[1759753868046,2.4672,4585.7,4585.3,0.47075378]
[1759753868244,2.4672,4585.7,4585.3,0.001]
[1759753869329,2.4672,4585.7,4585.3,0.3138]
[1759753869532,2.4672,4585.7,4585.4,0.02180834]
[1759753869946,0.0012,4585.7,4585.4,0.02180834]
[1759753870153,0.0012,4585.7,4585.4,0.3128]
[1759753870348,0.0012,4585.7,4585.3,2.18187209]
[1759753870349,2.4672,4585.7,4585.3,2.18188025]
[1759753870558,2.4672,4585.7,4585.6,0.1088]
[1759753871234,2.9416,4585.7,4585.6,0.1088]
[1759753871431,5.12229215,4585.7,4585.6,0.1088]
[1759753871841,5.12229215,4585.7,4585.3,0.001]
[1759753871842,2.9416,4585.7,4585.3,0.001]
[1759753872050,2.18083482,4585.4,4585.3,0.001]
[1759753872375,4.95975278,4585.4,4585.3,0.001]
[1759753872664,5.43415278,4585.4,4585.3,0.001]
[1759753873661,5.23003482,4585.4,4585.3,0.001]
[1759753874769,3.0492,4585.4,4585.3,0.001]
[1759753874976,0.0012,4585.7,4585.3,0.001]
[1759753875135,2.1807939,4585.5,4585.3,0.001]
[1759753875335,2.465,4585.4,4585.3,0.1098]
[1759753875578,0.0012,4585.7,4585.3,0.1098]
[1759753875882,2.465,4585.5,4585.3,0.1098]
[1759753876033,0.0012,4585.7,4585.3,0.23007652]
[1759753876337,2.465,4585.6,4585.5,0.1088]
[1759753877938,4.6457397,4585.6,4585.5,0.1088]
[1759753878138,2.18078726,4585.5,4585.3,0.001]
[1759753878355,2.38493368,4585.4,4585.3,0.001]
[1759753878556,2.85933368,4585.4,4585.3,0.001]
[1759753879177,2.65523482,4585.4,4585.3,0.001]
[1759753879387,2.9404,4585.4,4585.3,0.001]
[1759753879871,2.9404,4585.4,4585.3,0.1098]
[1759753879872,2.466,4585.4,4585.3,0.1098]
[1759753880254,0.0012,4585.7,4585.3,0.1098]
[1759753880583,2.466,4585.6,4585.3,0.1098]
[1759753880780,2.466,4585.5,4585.3,0.1098]
[1759753882183,2.18190433,4585.7,4585.3,0.1098]
[1759753882487,2.466,4585.5,4585.3,0.1098]
[1759753883185,2.466,4585.5,4585.3,0.001]
[1759753883186,2.65523482,4585.4,4585.3,0.001]
[1759753883384,0.4744,4585.4,4585.3,0.001]
[1759753883886,2.466,4585.5,4585.3,0.001]
[1759753884798,4.64678866,4585.5,4585.3,0.001]
[1759753885006,5.12118866,4585.5,4585.3,0.001]
[1759753885401,2.466,4585.5,4585.3,0.001]
[1759753885971,5.12122441,4585.5,4585.3,0.001]
[1759753886183,2.65523482,4585.4,4585.3,0.001]
[1759753887514,0.4744,4585.4,4585.3,0.001]
[1759753888583,2.466,4585.5,4585.3,0.001]
[1759753889586,2.9404,4585.5,4585.3,0.001]
[1759753890113,2.466,4585.5,4585.3,0.001]
[1759753890894,4.64599132,4585.5,4585.3,0.001]
[1759753891214,5.12039132,4585.5,4585.3,0.001]
[1759753891720,2.9396,4585.5,4585.3,0.001]